bitfinex/quotes_ETHUSD_20260203
["timestamp","ask_amount","ask_price","bid_price","bid_amount"]
[1770152405646,0.00656038,2303.0,2301.7,0.911]
[1770152405846,0.00656038,2303.1,2301.7,0.911]
[1770152406078,1.09188612,2303.5,2301.7,13.77558611]
[1770152406079,0.00656038,2303.5,2301.7,13.77558611]
[1770152406277,0.00656038,2303.0,2301.8,1.37755861]
[1770152406578,0.00656038,2302.9,2301.7,0.911]
[1770152406775,0.00656038,2302.2,2301.3,0.001]
[1770152406947,0.00656038,2301.8,2301.0,0.001]
[1770152407142,0.00656038,2301.8,2300.3,1.04171887]
[1770152407143,0.00656038,2301.2,2300.2,0.001]
[1770152407377,0.00656038,2301.1,2300.2,0.001]
[1770152407578,0.00656038,2301.5,2300.2,0.001]
[1770152407579,0.1024,2302.7,2300.6,13.95121627]
[1770152407784,0.00656038,2302.2,2300.7,1.82980173]
[1770152407947,0.00656038,2302.0,2300.7,1.82980173]
[1770152408350,0.00656038,2301.9,2300.7,1.82980173]
[1770152408550,0.00656038,2302.2,2300.7,1.82980173]
[1770152408753,0.00656038,2302.1,2300.7,1.82980173]
[1770152408951,0.00656038,2302.3,2300.8,1.56053878]
[1770152409169,0.00656038,2302.2,2300.8,1.56053878]
[1770152409368,0.00656038,2302.1,2300.8,1.56053878]
[1770152409655,0.00656038,2302.3,2300.8,1.56053878]
[1770152409848,0.00656038,2302.5,2300.9,0.83855925]
[1770152410056,0.00656038,2302.8,2301.1,13.95102303]
[1770152410270,0.00656038,2302.6,2301.1,12.86458611]
[1770152411688,0.00656038,2303.8,2301.9,12.86458611]
[1770152411848,0.00656038,2303.6,2302.0,0.911]
[1770152412178,0.00656038,2303.2,2302.1,1.37755861]
[1770152412784,0.00656038,2303.7,2302.1,1.37755861]
[1770152412981,2.19444769,2304.0,2302.2,13.93551701]
[1770152413184,2.19444769,2304.0,2302.6,13.09815641]
[1770152413382,2.19444769,2304.0,2302.7,15.11593424]
[1770152413551,0.00656038,2303.8,2302.8,0.911]
[1770152413754,0.00656038,2303.9,2302.8,0.911]
[1770152413971,0.0011,2303.7,2302.8,0.911]
[1770152414648,0.0011,2303.7,2302.4,1.04171887]
[1770152414851,0.0011,2303.7,2302.2,12.86458611]
[1770152415089,0.00766038,2303.7,2302.2,12.86458611]
[1770152415452,0.00766038,2303.7,2302.2,13.77558611]
[1770152415676,0.0011,2303.7,2302.3,13.70197089]
[1770152415863,0.0011,2303.7,2302.4,14.78753723]
[1770152416095,2.04936447,2304.0,2302.6,13.20055641]
[1770152416296,1.97274183,2304.0,2302.8,13.09815641]
[1770152416602,0.0011,2304.7,2303.0,12.86458611]
[1770152416800,0.0011,2304.7,2303.1,13.77558611]
[1770152416970,0.0011,2304.7,2303.2,0.83570468]
[1770152417166,0.0011,2304.9,2303.2,0.83570468]
[1770152417167,0.0011,2304.9,2303.9,0.2335703]
[1770152417409,0.00656038,2304.8,2304.0,0.911]
[1770152417569,0.00766038,2304.9,2304.0,0.911]
[1770152417570,0.0011,2304.9,2304.0,0.911]
[1770152418686,0.00656038,2304.8,2304.0,0.911]
[1770152418890,0.00656038,2304.8,2303.3,15.37034604]
[1770152418891,0.00656038,2304.7,2303.3,15.37034604]
[1770152419074,0.00656038,2304.7,2302.8,7.55683287]
[1770152419075,0.00656038,2303.7,2302.5,4.93727134]
[1770152419289,0.00656038,2303.7,2302.5,2.41323073]
[1770152419290,0.00656038,2303.3,2302.5,2.41323073]
[1770152419486,0.00656038,2302.6,2302.5,2.41323073]
[1770152419685,0.00656038,2302.6,2301.2,6.44959447]
[1770152419686,0.00656038,2302.1,2301.0,1.52636841]
[1770152419887,0.00656038,2302.4,2300.9,0.001]
[1770152419888,0.00656038,2301.8,2300.9,0.001]
[1770152420401,0.00656038,2301.6,2300.9,0.001]
[1770152420699,0.00656038,2302.0,2300.9,0.001]
[1770152420700,0.00656038,2302.3,2300.9,0.001]
[1770152421011,0.00656038,2301.7,2300.9,0.001]
[1770152421171,0.00656038,2302.0,2300.9,0.001]
[1770152421172,0.00656038,2302.3,2300.9,0.001]
[1770152421372,0.00656038,2302.1,2300.9,0.001]
[1770152421914,0.76110244,2302.0,2300.9,0.001]
[1770152422271,0.76110244,2302.0,2300.9,1.08753135]
[1770152422469,0.58073915,2302.6,2301.1,12.90293434]
[1770152422698,0.00656038,2302.9,2301.1,12.90293434]
[1770152422699,0.00656038,2303.1,2301.3,13.84516519]
[1770152423061,0.00656038,2303.4,2301.4,14.07748164]
[1770152423168,0.00656038,2303.2,2301.6,12.80053434]
[1770152423803,0.00656038,2303.3,2301.6,12.80053434]
[1770152423972,0.00656038,2303.3,2301.6,12.56696404]
[1770152424172,0.00656038,2302.9,2301.6,12.56696404]
[1770152424416,0.00656038,2303.3,2301.6,12.56696404]
[1770152424417,0.0011,2304.9,2303.0,12.56696404]
[1770152424597,0.0011,2304.9,2303.1,0.911]
[1770152424805,0.00656038,2304.8,2303.1,0.911]
[1770152425110,0.0011,2304.9,2303.1,0.911]
[1770152425111,0.00766038,2304.9,2303.1,0.911]
[1770152425480,0.0011,2304.9,2303.2,0.2335703]
[1770152425682,0.0011,2304.9,2303.3,0.00656038]
[1770152425879,0.0011,2304.9,2303.5,0.00656038]
[1770152426079,0.0011,2304.9,2303.4,0.2335703]
[1770152426279,0.0011,2304.9,2303.5,1.08530497]
[1770152426514,0.0011,2304.9,2303.6,0.2335703]
[1770152426675,0.0011,2304.9,2303.6,0.82359288]
[1770152427373,0.0011,2304.9,2303.8,0.2335703]
[1770152427672,0.0011,2304.9,2303.9,0.911]
[1770152428682,0.00656038,2304.7,2303.4,1.08534714]
[1770152428870,0.00656038,2304.8,2303.3,0.911]
[1770152429074,0.00656038,2304.8,2303.4,1.74780722]
[1770152429513,0.00656038,2304.8,2303.4,1.74778195]
[1770152429726,0.00656038,2304.6,2303.4,0.66245578]
[1770152430000,0.00656038,2304.8,2303.3,1.99636367]
[1770152430809,0.00656038,2304.7,2303.3,1.99636367]
[1770152431129,0.00656038,2304.7,2303.2,1.37180873]
[1770152431130,0.00656038,2304.3,2303.2,1.37180873]
[1770152431311,0.00656038,2304.1,2302.7,0.911]
[1770152431515,0.00656038,2303.8,2302.7,0.911]
[1770152432013,0.00656038,2303.7,2302.3,1.08586775]
[1770152432224,0.00656038,2303.7,2302.1,0.911]
[1770152432393,0.00656038,2304.0,2302.7,4.34267156]
[1770152432598,0.00656038,2304.1,2302.8,0.43426716]
[1770152432782,0.00656038,2304.0,2302.8,0.43426716]
[1770152432986,0.00656038,2304.0,2302.6,1.08570276]
[1770152433187,0.00656038,2304.0,2302.6,1.08572621]
[1770152433408,0.00656038,2304.0,2302.5,4.34291751]
[1770152433606,0.00656038,2304.0,2302.6,4.34288561]
[1770152433805,0.00656038,2304.0,2302.6,1.08570602]
[1770152434023,0.00656038,2304.3,2302.2,12.56696404]
[1770152434024,0.00656038,2304.3,2302.8,1.08562778]
[1770152434390,1.09134212,2304.7,2302.8,13.65259182]
[1770152434391,0.00656038,2304.7,2302.8,13.65259182]
[1770152434593,0.00656038,2304.8,2303.0,1.08554059]
[1770152434802,12.07929241,2305.1,2303.0,1.99654059]
[1770152435018,12.07929241,2305.1,2303.1,1.91457977]
[1770152435397,0.00656038,2304.7,2303.1,1.91457977]
[1770152435605,0.00656038,2303.9,2302.5,1.08575684]
[1770152435913,0.00656038,2303.8,2302.4,13.6527839]
[1770152436112,0.00656038,2303.9,2302.4,12.56696404]
[1770152436421,0.00656038,2303.9,2302.1,0.911]
[1770152436422,0.00656038,2303.5,2302.1,0.911]
[1770152436821,0.00656038,2303.6,2302.1,0.911]
[1770152437028,0.00656038,2303.2,2302.1,0.911]
[1770152437324,0.00656038,2303.3,2302.1,0.911]
[1770152437625,0.00656038,2302.9,2301.8,0.001]
[1770152437837,0.00656038,2302.5,2301.8,0.001]
[1770152438138,0.00656038,2302.6,2301.8,0.001]
[1770152438541,0.00656038,2303.2,2301.8,0.001]
[1770152438705,0.00656038,2302.9,2301.8,0.001]
[1770152438907,0.00656038,2302.9,2302.7,0.001]
[1770152439107,0.10896038,2303.5,2301.8,0.001]
[1770152439108,0.56502382,2303.5,2301.8,0.001]
[1770152439413,0.00656038,2303.6,2301.8,0.001]
[1770152439721,0.00656038,2302.8,2301.8,0.001]
[1770152440205,0.00656038,2302.7,2301.8,0.001]
[1770152440407,0.00656038,2303.1,2301.8,0.001]
[1770152440615,0.00656038,2303.0,2301.8,0.001]
[1770152441511,0.00656038,2303.4,2301.8,0.001]
[1770152441908,0.00656038,2302.9,2301.8,0.001]
[1770152442527,0.00656038,2302.8,2301.8,0.001]
[1770152443844,0.00656038,2302.4,2301.8,0.001]
[1770152444006,0.00656038,2302.7,2301.8,0.001]
[1770152444357,0.00656038,2303.2,2301.8,0.001]
[1770152444358,0.00656038,2303.1,2301.8,0.001]
[1770152444530,0.00656038,2302.7,2301.8,0.001]
[1770152444837,0.00656038,2302.5,2301.8,0.001]
[1770152445357,0.00656038,2302.1,2301.5,0.001]
[1770152445663,0.00656038,2302.1,2300.9,0.001]
[1770152445664,0.00656038,2301.7,2300.9,0.001]
[1770152445871,0.00656038,2301.3,2300.9,0.001]
[1770152446172,0.00656038,2301.3,2300.6,0.001]
[1770152446350,0.00656038,2301.6,2300.6,0.001]
[1770152446524,0.00656038,2301.5,2300.6,0.001]
[1770152447061,0.00656038,2301.4,2300.6,0.001]
[1770152447234,0.00656038,2301.6,2300.6,0.001]
[1770152447756,0.00656038,2301.5,2300.6,0.001]
[1770152448174,0.10896038,2301.9,2300.6,0.001]
[1770152448175,0.00656038,2301.9,2300.6,0.001]
[1770152448730,0.00656038,2301.8,2300.6,0.001]
[1770152449648,0.00656038,2301.4,2300.6,0.001]
[1770152450061,0.00656038,2301.3,2300.2,0.001]
[1770152450362,0.54511738,2301.3,2300.2,0.001]
[1770152450664,0.00656038,2302.1,2300.2,0.001]
[1770152450665,1.09232841,2302.6,2300.8,12.51109253]
[1770152451032,0.00656038,2302.4,2300.4,0.00656038]
[1770152451232,0.00656038,2301.6,2300.2,0.001]
[1770152451465,0.00656038,2302.5,2300.4,12.51109253]
[1770152451637,0.00656038,2302.4,2300.6,12.51109253]
[1770152451964,1.14095929,2302.8,2301.0,12.51109253]
[1770152452131,1.14095929,2302.8,2301.2,12.51109253]
[1770152452329,0.00656038,2302.6,2301.2,12.51109253]
[1770152452659,1.14095929,2302.8,2301.4,12.74466283]
[1770152452831,1.14095929,2302.8,2301.4,12.75122321]
[1770152453033,1.14095929,2302.8,2301.7,12.51109253]
[1770152453270,0.00656038,2303.6,2301.7,13.42209253]
[1770152453439,0.00656038,2303.5,2301.7,13.42209253]
[1770152453641,0.00656038,2303.4,2301.8,13.85395782]
[1770152453834,0.00656038,2303.1,2301.8,13.85395782]
[1770152454033,0.54459192,2303.5,2301.8,14.94005711]
[1770152454235,0.00656038,2303.6,2301.8,14.94005711]
[1770152454444,0.00656038,2303.5,2301.8,14.94005711]
[1770152454645,0.00656038,2303.6,2301.8,14.94005711]
[1770152454863,0.00656038,2303.5,2301.8,14.94005711]
[1770152455360,0.00656038,2303.4,2301.8,14.94005711]
[1770152455532,0.00656038,2303.4,2302.0,12.64813931]
[1770152456159,0.00656038,2303.4,2302.0,13.73414101]
[1770152456461,0.00656038,2303.7,2302.0,13.73414101]
[1770152456664,0.86956038,2304.0,2302.0,13.73414101]
[1770152456665,0.86956038,2304.0,2302.0,13.74070139]
[1770152456882,0.00656038,2303.9,2302.0,13.74070139]
[1770152457059,0.00656038,2303.9,2302.2,12.64813931]
[1770152457448,0.00656038,2303.8,2302.2,12.64813931]
[1770152457668,0.00656038,2303.7,2302.2,12.64813931]
[1770152457857,0.86956038,2304.0,2302.4,12.64813931]
[1770152458364,0.86956038,2304.0,2302.6,12.64813931]
[1770152458568,0.86956038,2304.0,2302.7,14.02153087]
[1770152459087,1.09256214,2304.4,2302.7,14.02153087]
[1770152459088,0.0011,2304.4,2302.7,14.02153087]
[1770152459245,0.0011,2304.4,2302.9,12.64813931]
[1770152459443,0.0011,2304.4,2302.8,0.83289425]
[1770152459444,0.0011,2304.4,2303.1,12.64813931]
[1770152459641,0.0011,2304.6,2303.0,0.8329155]
[1770152459642,0.0011,2304.6,2303.5,12.64813931]
[1770152459948,0.0011,2304.6,2303.7,12.64813931]
[1770152460146,0.0011,2304.9,2303.8,13.73330295]
[1770152460473,0.0011,2304.9,2303.6,0.911]
[1770152460474,0.00656038,2304.8,2303.6,0.911]
[1770152460692,0.00656038,2304.6,2303.3,12.64813931]
[1770152460867,0.00656038,2304.3,2303.3,12.64813931]
[1770152461195,0.00656038,2304.6,2303.3,1.39962448]
[1770152461493,0.00656038,2304.6,2303.1,13.73359581]
[1770152461712,0.00656038,2304.6,2302.9,0.911]
[1770152461713,0.00656038,2304.2,2302.9,0.911]
[1770152461994,0.00656038,2303.7,2302.1,13.73406943]
[1770152462165,1.09177352,2303.7,2302.2,0.83445148]
[1770152462363,1.09177352,2303.7,2301.8,1.3785338]
[1770152462364,0.00656038,2303.0,2301.5,12.64813931]
[1770152462589,0.00656038,2303.2,2301.7,13.73426087]
[1770152462779,0.00656038,2303.7,2302.2,1.08590924]
[1770152462981,0.00656038,2303.7,2302.2,0.911]
[1770152463160,0.00656038,2303.3,2302.2,0.911]
[1770152463364,0.00656038,2303.4,2302.2,2.26691393]
[1770152463584,0.00656038,2303.4,2301.6,1.35591393]
[1770152463585,0.00656038,2303.0,2301.6,1.35591393]
[1770152463891,0.00656038,2302.9,2301.6,1.35591393]
[1770152464189,0.00656038,2303.3,2301.8,1.08610553]
[1770152464489,0.00656038,2303.1,2301.6,14.00405324]
[1770152464679,0.00656038,2303.1,2301.7,0.83565828]
[1770152464880,0.00656038,2303.1,2301.7,1.68369105]
[1770152465070,0.00656038,2302.8,2301.7,1.68369105]
[1770152465276,0.00656038,2302.8,2301.5,0.911]
[1770152466289,0.00656038,2303.0,2301.5,0.911]
[1770152468094,0.00656038,2303.0,2301.0,1.4860196]
[1770152468095,0.00656038,2302.2,2301.0,1.4860196]
[1770152468297,1.09265809,2301.9,2301.0,1.4860196]
[1770152468601,0.00656038,2301.6,2300.8,0.001]
[1770152468903,0.00656038,2301.4,2300.5,0.001]
[1770152469196,0.544331,2301.8,2300.5,0.001]
[1770152469415,0.10896038,2302.4,2300.5,0.001]
[1770152469583,1.09240742,2302.4,2300.5,12.64913931]
[1770152469785,4.45171341,2302.7,2300.7,12.64813931]
[1770152469786,0.00656038,2302.7,2300.7,12.64813931]
[1770152469988,1.57259921,2302.8,2301.0,13.73462159]
[1770152469989,1.00757539,2302.8,2301.0,13.73462159]
[1770152470296,0.00656038,2302.2,2300.5,14.60477016]
[1770152470470,0.00656038,2302.1,2300.7,12.64813931]
[1770152470676,1.09236858,2302.5,2300.7,12.64813931]
[1770152470868,0.00656038,2302.3,2300.7,12.64813931]
[1770152472285,0.00656038,2302.6,2300.9,12.64813931]
[1770152472286,1.09229876,2302.6,2300.9,12.64813931]
[1770152472492,0.00656038,2302.4,2301.0,1.26481393]
[1770152473263,0.00656038,2302.4,2301.0,13.91295324]
[1770152473699,0.00656038,2302.7,2301.0,13.91295324]
[1770152474003,1.00757539,2302.8,2301.2,12.64813931]
[1770152474173,1.00757539,2302.8,2301.4,12.64813931]
[1770152474573,1.00757539,2302.8,2301.4,13.73443002]
[1770152474780,1.00757539,2302.8,2301.4,12.64813931]
[1770152475205,0.00656038,2302.5,2301.4,12.64813931]
[1770152475381,0.00656038,2302.5,2301.3,2.28300671]
[1770152475589,0.00656038,2302.6,2301.3,0.911]
[1770152477686,0.00656038,2302.4,2301.3,0.911]
[1770152477882,0.00656038,2302.2,2301.0,1.26481393]
[1770152478615,1.49391338,2302.7,2301.0,14.99940824]
[1770152478793,1.50047376,2302.7,2301.0,14.99940824]
[1770152478989,0.25926775,2302.6,2301.1,1.93464988]
[1770152479390,0.25926775,2302.6,2301.1,14.58278919]
[1770152479608,1.50047376,2302.7,2301.1,14.58278919]
[1770152479609,1.49391338,2302.7,2301.5,12.64813931]
[1770152479808,1.49391338,2302.7,2301.7,12.64813931]
[1770152480010,0.68811285,2303.8,2302.1,12.64813931]
[1770152480211,0.00656038,2304.1,2302.2,14.77521845]
[1770152480512,0.00766038,2304.4,2302.5,13.69277016]
[1770152480811,0.00766038,2304.4,2302.3,1.44329658]
[1770152480812,0.00656038,2303.7,2302.3,12.32321227]
[1770152481010,0.00656038,2303.6,2302.2,1.28817096]
[1770152481309,0.00656038,2303.6,2301.9,1.3785338]
[1770152481310,0.00656038,2303.0,2301.9,12.32321227]
[1770152482993,0.00656038,2303.4,2301.9,12.32321227]
[1770152482994,0.55846344,2303.9,2302.1,0.2335703]
[1770152483209,0.00766038,2304.4,2302.4,12.32321227]
[1770152483415,0.55846344,2304.2,2302.8,12.32321227]
[1770152483584,0.0011,2304.4,2302.9,13.16290413]
[1770152483784,0.0011,2304.4,2303.0,2.15598227]
[1770152483989,0.0011,2304.4,2303.0,13.63950268]
[1770152484188,0.00656038,2304.3,2303.0,13.63950268]
[1770152484414,0.00656038,2304.3,2302.5,0.911]
[1770152484415,0.00656038,2303.6,2302.5,13.23421227]
[1770152484615,0.00656038,2303.8,2302.5,13.23421227]
[1770152485019,0.00656038,2303.7,2302.5,13.23421227]
[1770152485320,0.00656038,2304.0,2302.6,0.83862959]
[1770152485500,4.34729799,2304.4,2302.8,12.32321227]
[1770152485501,1.09255569,2304.4,2302.8,12.32321227]
[1770152485816,0.00766038,2304.4,2302.9,14.47764834]
[1770152486016,0.00656038,2304.3,2302.9,13.63936212]
[1770152487792,0.00656038,2304.0,2302.9,13.63936212]
[1770152488415,0.00656038,2304.1,2302.9,13.63936212]
[1770152488620,0.00656038,2303.9,2302.9,1.31614985]
[1770152488828,0.00656038,2304.0,2302.5,14.31996561]
[1770152488992,0.00656038,2304.0,2302.6,13.160052]
[1770152489191,0.00656038,2304.1,2302.6,12.32321227]
[1770152489532,0.00656038,2304.0,2302.6,12.32321227]
[1770152489691,0.00656038,2303.6,2302.5,0.911]
[1770152489893,0.00656038,2303.7,2302.5,0.911]
[1770152490219,0.0011,2304.1,2302.6,12.32321227]
[1770152490428,0.00766038,2304.1,2302.7,13.6466335]
[1770152491202,0.00656038,2304.0,2302.7,13.6466335]
[1770152491636,0.00766038,2304.1,2302.7,13.6466335]
[1770152491848,0.0011,2304.1,2302.9,12.32321227]
[1770152492143,0.0011,2304.1,2303.1,12.32321227]
[1770152492295,0.0011,2304.4,2303.2,13.23421227]
[1770152492497,0.0011,2304.4,2302.8,1.04463085]
[1770152492498,0.00656038,2303.8,2302.8,1.04463085]
[1770152492711,0.00656038,2303.6,2302.2,13.23421227]
[1770152492909,0.00656038,2304.0,2302.2,13.23421227]
[1770152492910,0.0011,2304.4,2302.7,12.32321227]
[1770152493097,0.00656038,2303.8,2302.3,1.32342123]
[1770152493322,0.00656038,2303.6,2302.3,1.32342123]
[1770152493522,0.00656038,2303.5,2302.3,1.32342123]
[1770152493705,0.00656038,2303.6,2302.3,1.32342123]
[1770152493913,0.00656038,2303.6,2302.4,1.45576335]
[1770152494097,0.00656038,2304.2,2302.4,13.77897562]
[1770152494301,0.00656038,2304.2,2302.6,12.32321227]
[1770152494498,0.55846344,2304.3,2302.8,12.32321227]
[1770152494742,0.55846344,2304.3,2303.0,12.32321227]
[1770152494921,0.00656038,2304.2,2303.0,12.32321227]
[1770152495247,0.0011,2304.4,2303.0,12.32321227]
[1770152495426,0.00766038,2304.4,2303.0,13.40872477]
[1770152495623,0.0011,2304.4,2303.0,13.40872477]
[1770152495925,0.0011,2304.4,2303.1,14.18941804]
[1770152496131,0.00656038,2304.3,2303.1,14.18941804]
[1770152496298,0.00656038,2304.3,2303.1,1.86620577]
[1770152496493,0.00656038,2304.0,2302.9,13.23421227]
[1770152496696,0.0011,2304.4,2303.0,13.40875277]
[1770152497830,0.00766038,2304.4,2303.0,13.40875277]
[1770152498007,0.0011,2304.4,2303.0,13.40875277]
[1770152498566,0.0011,2304.6,2303.0,13.40875277]
[1770152498567,0.0011,2304.6,2303.4,12.32321227]
[1770152498849,0.0011,2304.6,2303.2,1.28476153]
[1770152498850,0.0011,2304.9,2303.6,12.32321227]
[1770152499162,0.0011,2304.9,2303.5,2.06805461]
[1770152499163,0.0011,2304.9,2303.8,12.32321227]
[1770152499724,0.0011,2304.9,2303.8,13.40837471]
[1770152500334,0.0011,2304.9,2304.0,12.32321227]
[1770152500530,0.0011,2304.9,2304.1,13.15782379]
[1770152500747,0.0011,2304.9,2304.2,1.31578238]
[1770152501457,0.0011,2304.9,2304.2,2.40075254]
[1770152501618,0.0011,2304.9,2304.2,1.31578238]
[1770152502124,0.0011,2305.1,2304.3,0.911]
[1770152502326,0.0011,2305.3,2304.3,0.911]
[1770152502527,0.00656038,2305.1,2304.3,0.911]
[1770152502725,0.00656038,2305.0,2304.3,0.911]
[1770152503128,0.00656038,2305.1,2304.3,0.911]
[1770152503455,0.00766038,2305.3,2304.3,0.911]
[1770152503456,0.0011,2305.3,2304.3,0.911]
[1770152503645,0.0011,2305.3,2304.3,1.99590703]
[1770152503844,0.0011,2305.3,2304.4,0.6335775]
[1770152504068,0.0011,2305.3,2304.4,12.95678977]
[1770152504477,0.0011,2305.6,2304.6,12.32321227]
[1770152504631,0.0011,2305.8,2304.6,12.32321227]
[1770152504632,0.0011,2305.8,2304.8,12.32321227]
[1770152504832,0.0011,2305.8,2304.9,13.15705133]
[1770152505064,0.0011,2305.9,2305.1,12.32321227]
[1770152505364,0.11246718,2306.7,2305.3,1.08445755]
[1770152505365,0.1059068,2306.7,2305.3,1.08445755]
[1770152505547,0.00656038,2306.6,2305.2,1.08447901]
[1770152505752,0.1059068,2306.7,2305.2,1.08447901]
[1770152505953,0.1059068,2306.7,2305.2,13.40769128]
[1770152506160,0.1059068,2306.7,2305.3,14.09779599]
[1770152506335,0.1059068,2306.7,2305.5,12.32321227]
[1770152506535,1.08989757,2307.7,2305.7,12.32321227]
[1770152506736,1.08989757,2307.7,2305.9,12.32321227]
[1770152506737,0.00656038,2307.4,2305.9,12.32321227]
[1770152506953,0.00656038,2307.6,2305.9,12.32321227]
[1770152507163,0.00656038,2307.6,2306.0,1.32332123]
[1770152507164,0.00656038,2307.2,2306.0,1.32332123]
[1770152507367,0.00656038,2307.3,2306.0,1.32332123]
[1770152507879,0.55846344,2307.7,2306.1,12.32321227]
[1770152508104,0.22676829,2308.7,2307.6,0.00656038]
[1770152508239,0.00656038,2310.0,2307.6,0.00656038]
[1770152508240,0.31257634,2311.2,2308.8,12.32321227]
[1770152508433,0.31257634,2311.2,2310.1,0.00656038]
[1770152508679,12.91222051,2312.0,2310.5,0.00656038]
[1770152508877,0.22626388,2312.6,2310.5,0.00656038]
[1770152508878,12.91222051,2312.5,2310.7,0.00656038]
[1770152509167,0.22626388,2312.6,2310.0,12.32977265]
[1770152509168,0.00656038,2312.3,2310.0,12.32977265]
[1770152509492,1.37633413,2312.3,2310.6,0.00656038]
[1770152509674,1.37633413,2312.3,2310.2,1.08871776]
[1770152509675,0.67902034,2312.1,2309.6,0.94618957]
[1770152509861,0.00656038,2311.3,2309.4,12.32321227]
[1770152510058,0.00656038,2311.3,2308.9,1.25498123]
[1770152510059,0.00656038,2310.6,2308.9,1.25498123]
[1770152510257,0.00656038,2310.4,2308.8,12.32321227]
[1770152510459,0.00656038,2310.4,2308.7,0.2266]
[1770152510460,0.00656038,2310.3,2308.7,0.2266]
[1770152510662,0.00656038,2310.1,2308.7,0.2266]
[1770152510969,0.1024,2311.2,2308.8,0.00656038]
[1770152511157,0.10896038,2311.2,2308.8,13.16304119]
[1770152511357,0.6324012,2311.3,2309.4,0.00656038]
[1770152511568,0.6324012,2311.3,2308.9,1.44790578]
[1770152511569,0.00656038,2310.6,2308.9,1.44790578]
[1770152511737,0.00656038,2310.3,2308.7,0.2266]
[1770152511938,0.00656038,2310.2,2308.7,0.2266]
[1770152512164,0.00656038,2310.1,2308.7,0.2266]
[1770152512340,0.00656038,2310.8,2309.0,1.0827179]
[1770152512540,0.00656038,2310.6,2308.7,13.7136396]
[1770152512758,0.00656038,2310.1,2308.7,13.7136396]
[1770152512953,0.00656038,2310.2,2308.7,14.79647974]
[1770152513150,0.00656038,2310.2,2308.7,13.7136396]
[1770152513354,0.00656038,2310.1,2308.7,0.2266]
[1770152513685,0.00656038,2310.0,2308.7,0.2266]
[1770152514038,0.00656038,2310.0,2307.8,0.10896038]
[1770152514039,0.00656038,2309.9,2308.0,1.08318326]
[1770152514274,0.00656038,2309.2,2307.9,1.08323104]
[1770152514579,0.00656038,2309.3,2308.0,1.08318066]
[1770152514747,0.00656038,2309.3,2307.9,1.83393039]
[1770152514955,0.00656038,2309.3,2307.7,12.92291051]
[1770152514956,0.00656038,2309.1,2307.7,12.92291051]
[1770152515160,0.00656038,2309.2,2307.7,12.92291051]
[1770152515353,0.00656038,2309.3,2307.7,14.00620823]
[1770152515557,0.00656038,2309.3,2307.7,14.00623409]
[1770152515761,0.00656038,2309.4,2307.7,14.00623409]
[1770152516075,0.00656038,2309.4,2307.8,1.83397326]
[1770152516076,0.00656038,2309.3,2307.8,1.83397326]
[1770152516285,0.00656038,2309.3,2306.7,1.08378907]
[1770152516286,0.00656038,2308.5,2306.7,1.08378907]
[1770152516442,0.00656038,2308.6,2306.9,4.33480867]
[1770152516644,0.836,2308.6,2306.9,16.35167909]
[1770152516855,0.836,2308.6,2307.0,1.08362434]
[1770152517055,0.836,2308.6,2307.0,1.74353034]
[1770152517251,0.84256038,2308.9,2308.6,0.001]
[1770152517476,0.84256038,2308.9,2307.0,13.76040076]
[1770152517477,0.00656038,2308.8,2307.0,14.84402506]
[1770152517678,0.836,2308.9,2307.0,14.84402506]
[1770152517880,0.836,2308.9,2307.7,0.001]
[1770152518083,0.00656038,2309.4,2307.7,0.001]
[1770152518084,11.8241595,2310.1,2307.7,0.001]
[1770152518384,0.4812926,2310.3,2309.3,0.00656038]
[1770152518385,1.69130027,2310.0,2309.3,0.00656038]
[1770152518579,7.55584085,2311.8,2310.3,0.00656038]
[1770152518580,0.836,2311.3,2310.3,0.00656038]
[1770152518767,0.6324012,2311.4,2310.5,0.00656038]
[1770152519076,0.836,2311.9,2310.6,0.00656038]
[1770152519253,0.00656038,2311.7,2309.7,12.01687042]
[1770152519442,0.00656038,2311.7,2309.7,13.09926018]
[1770152519443,0.00656038,2311.4,2309.7,13.09926018]
[1770152519645,0.00656038,2311.4,2309.4,1.08250902]
[1770152519646,0.00656038,2311.1,2309.4,1.08250902]
[1770152519875,0.00656038,2311.1,2309.4,0.54128652]
[1770152519876,0.836,2311.0,2309.4,0.54128652]
[1770152520064,0.836,2311.0,2309.2,4.330496]
[1770152520065,0.00656038,2310.9,2309.2,4.330496]
[1770152520382,0.00656038,2311.3,2309.2,4.330496]
[1770152520383,0.00656038,2311.8,2309.7,13.0992412]
[1770152520542,0.00656038,2311.3,2309.7,13.0992412]
[1770152520747,0.00656038,2311.0,2309.7,1.08237068]
[1770152520947,0.00656038,2310.9,2308.7,12.01687042]
[1770152521155,0.00656038,2310.7,2308.8,13.21855746]
[1770152521366,0.00656038,2310.7,2308.9,4.33105495]
[1770152521567,0.00656038,2310.8,2308.9,4.33105495]
[1770152521766,0.00656038,2310.8,2308.9,16.34792537]
[1770152521984,0.835,2310.7,2308.9,16.34792537]
[1770152522178,0.00656038,2311.0,2309.0,13.88732475]
[1770152522477,0.00656038,2310.5,2309.0,13.88076437]
[1770152522644,0.00656038,2310.4,2309.0,13.88076437]
[1770152522850,0.84056038,2310.3,2309.0,1.86389395]
[1770152523066,0.834,2310.2,2308.8,1.08278437]
[1770152523276,0.00656038,2311.0,2308.8,13.09965479]
[1770152523585,0.00656038,2310.8,2308.8,13.09965479]
[1770152523763,0.834,2310.6,2308.8,13.09965479]
[1770152524080,0.00656038,2310.2,2308.8,13.09965479]
[1770152524256,0.00656038,2310.3,2308.8,13.09967389]
[1770152524459,0.00656038,2310.2,2308.8,12.01687042]
[1770152524686,0.84056038,2310.6,2308.8,12.01687042]
[1770152524687,0.10896038,2311.1,2308.9,12.01687042]
[1770152524869,0.00656038,2311.7,2310.5,12.25044072]
[1770152525071,0.00766038,2312.1,2310.6,0.2335703]
[1770152525072,0.00656038,2312.0,2310.6,0.2335703]
[1770152525386,0.00766038,2312.1,2310.3,0.909]
[1770152525387,0.0011,2312.1,2310.3,0.909]
[1770152525592,0.00656038,2312.0,2310.4,0.2335703]
[1770152525880,0.00656038,2311.6,2309.9,12.01687042]
[1770152526185,0.00656038,2311.4,2309.9,12.01687042]
[1770152526488,0.00656038,2311.1,2309.9,12.01687042]
[1770152526783,0.00656038,2311.2,2309.7,4.32942505]
[1770152526784,0.00656038,2311.2,2309.7,1.08236099]
[1770152526986,0.833,2311.5,2309.8,1.08234388]
[1770152527154,0.0011,2312.1,2310.1,0.00656038]
[1770152527355,0.832,2311.8,2310.1,0.45822043]
[1770152527556,0.00656038,2311.6,2310.0,1.08224404]
[1770152527772,1.91340845,2311.8,2309.9,1.08225402]
[1770152527983,0.832,2311.8,2309.9,1.08225402]